[Event "Czech Championship Women 2022"]
[Site "Jaromerice nad Rokytnou"]
[Date "2022.05.26"]
[Round "6.4"]
[White "Novosadova, Kristyna"]
[Black "Richterova, Natasa"]
[Result "1/2-1/2"]
[ECO "B10"]
[WhiteElo "2147"]
[BlackElo "2181"]
[Annotator "TA"]
[PlyCount "133"]
[EventDate "2022.05.24"]
[EventType "tourn"]
[EventCountry "CZE"]
[SourceTitle "playchess.com"]
[Source "ChessBase"]
[SourceQuality "1"]
[TimeControl "40/5400+30:1800+30"]

{[%evp 9,133,-11,21,15,19,22,16,15,49,41,38,6,12,-17,0,0,0,0,0,0,19,0,0,0,0,0,0,0,0,0,0,0,10,0,0,0,0,0,0,0,2,5,5,0,0,0,0,0,0,0,0,0,0,0,0,0,0,0,0,0,0,0,0,0,0,0,0,0,0,0,0,-56,-72,-89,0,0,0,-8,-8,-8,-8,-8,-8,-8,-8,-8,0,-106,-70,-106,0,-13,-8,-8,-8,-8,-8,-8,96,0,0,-1,-7,-8,-8,-8,-8,-8,0,0,0,-8,-8,-8,0,0,0,0,0,0,0,0,0,0,0,0]} 1. e4 {[%emt 0:00:52]} c6 {[%emt 0:00:07]} 2. Nf3 {[%emt 0:00:09][%cal Bg1f3,Bf3e1,Be1d3,Bd3e5][%mdl 32]} d5 {[%emt 0:00:12]} 3. d3 {[%emt 0:00:05]} dxe4 {[%emt 0:01:23]} 4. dxe4 {[%emt 0:00:08]} Qxd1+ {[%emt 0:00:04]} 5. Kxd1 {[%emt 0:00:17]} Bg4 {[%emt 0:03:39]} 6. Be2 {[%emt 0:00:08] B10: Caro-Kann: 2 d3 and 2 c4.} Nd7 {[%emt 0:01:43][%cal Bb8d7,Bd7c5,Bc5e4][%mdl 32]} 7. Ne1 {[%emt 0:00:18]} Bxe2+ {[%emt 0:00:25]} 8. Kxe2 {[%emt 0:00:07]} e5 {[%emt 0:00:06]} 9. Nd3 {[%emt 0:02:40]} Nc5 {[%emt 0:06:08] [#]} 10. Be3 $146 {[%emt 0:01:29]} ({Predecessor:} 10. Nd2 Nf6 11. Nxc5 Bxc5 12. f3 Nd7 13. a4 a5 14. Nc4 Ke7 15. Rd1 f6 16. Bd2 {½-½ (44) Goganov,A (2582)-Shakirov,M (2139) St Petersburg 2022}) 10... Nxe4 {[%emt 0:05:20]} 11. Kf3 {[%emt 0:03:10]} Ngf6 {[%emt 0:03:35]} 12. Nxe5 {[%emt 0:05:17]} Bc5 {[%emt 0:01:12]} (12... Bd6 {seems wilder.} 13. Nd3 O-O-O 14. Nd2 Rhe8) 13. Bxc5 {[%emt 0:04:30]} Nxc5 {[%emt 0:00:07]} 14. Re1 {[%emt 0:00:52] [#] Threatens to win with Ng6+.} O-O {[%emt 0:00:11]} 15. Na3 {[%emt 0:04:18]} Rad8 {[%emt 0:04:20]} 16. Rad1 {[%emt 0:03:51]} Rfe8 {[%emt 0:02:33][%cal Bf8e8,Be8d8,Bd8d5][%mdl 32]} 17. Rxd8 {[%emt 0:02:05]} Rxd8 {[%emt 0:00:03]} 18. Nac4 {[%emt 0:03:58]} Ne6 {[%emt 0:02:15]} 19. c3 {[%emt 0:06:06] Inhibits Nd4+.} Rd5 {[%emt 0:03:35]} 20. g3 {[%emt 0:06:28]} g6 {[%emt 0:00:11]} 21. Re2 {[%emt 0:01:11]} Nd7 {[%emt 0:03:30]} 22. Nxd7 {[%emt 0:02:10]} Rxd7 {[%emt 0:00:02]} 23. Rd2 {[%emt 0:01:44]} Rxd2 {[%emt 0:00:28]} 24. Nxd2 $11 {[%emt 0:00:06][%mdl 4096] Endgame KN-KN} Kf8 {[%emt 0:01:18]} 25. Ke4 {[%emt 0:02:33]} Ke7 {[%emt 0:00:17]} 26. f4 {[%emt 0:00:41]} Nc5+ {[%emt 0:03:18]} 27. Kd4 {[%emt 0:00:28]} Ne6+ {[%emt 0:00:07]} 28. Ke5 {[%emt 0:03:13]} f6+ {[%emt 0:01:54]} 29. Ke4 {[%emt 0:00:06]} Nc5+ {[%emt 0:00:46]} 30. Kd4 $1 {[%emt 0:00:37]} Ne6+ {[%emt 0:00:10]} 31. Kc4 {[%emt 0:01:15]} Nc7 {[%emt 0:02:01]} 32. a4 {[%emt 0:02:29]} Ke6 {[%emt 0:00:38]} 33. Nb3 {[%emt 0:04:42] Nc5+ is the strong threat.} b6 {[%emt 0:00:53] Inhibits Nc5+.} 34. Nd4+ {[%emt 0:00:16]} Kd6 {[%emt 0:00:07]} 35. b4 {[%emt 0:00:50]} Nd5 {[%emt 0:07:01]} 36. b5 {[%emt 0:06:41]} c5 {[%emt 0:02:16]} 37. Nc2 {[%emt 0:01:59] Prevents Ne3+.} g5 {[%emt 0:04:46]} 38. fxg5 {[%emt 0:01:31]} fxg5 {[%emt 0:00:00]} 39. Kd3 $1 {[%emt 0:01:10]} Ke5 {[%emt 0:04:27]} 40. Na3 {[%emt 0:11:35]} (40. Ne3 $11) 40... Kf5 $15 {[%emt 0:08:21] White must now prevent ...h5.} 41. h3 {[%emt 0:36:30]} h5 {[%emt 0:38:54]} ({Black should play} 41... g4 $17 42. h4 Nf6) 42. Nc4 $11 {[%emt 0:05:51]} Ke6 {[%emt 0:01:02]} 43. a5 {[%emt 0:00:00]} h4 {[%emt 0:00:00]} 44. gxh4 {[%emt 0:00:00]} gxh4 {[%emt 0:00:00]} 45. axb6 {[%emt 0:00:00]} axb6 {[%emt 0:00:00]} 46. Nd2 {[%emt 0:00:00]} Nf4+ {[%emt 0:00:00]} 47. Kc4 {[%emt 0:00:12]} Ng6 {[%emt 0:00:00] [#] aiming for ...Ne5+.} (47... Nxh3 $5 48. Nf3 Nf2 49. Nxh4 Ne4 $11) 48. Ne4 {[%emt 0:03:51]} (48. Kd3 $1 $11) 48... Ne5+ $17 {[%emt 0:00:00]} 49. Kb3 {[%emt 0:00:31]} Kd5 {[%emt 0:00:00]} (49... Kf5 $17 50. Nd6+ Kf4) 50. Ng5 {[%emt 0:02:03]} c4+ {[%emt 0:00:00]} 51. Ka4 {[%emt 0:00:25]} Nd3 {[%emt 0:00:00]} 52. Nf3 {[%emt 0:00:41]} Kc5 {[%emt 0:00:00]} 53. Nxh4 {[%emt 0:00:21]} Nb2+ {[%emt 0:00:00]} 54. Ka3 {[%emt 0:00:06]} Nd1 {[%emt 0:00:00] The position is equal.} 55. Nf5 {[%emt 0:01:09]} Nxc3 {[%emt 0:00:00]} 56. Kb2 {[%emt 0:00:11]} Nxb5 {[%emt 0:00:00] Threatening ...Nd4.} 57. h4 {[%emt 0:00:06] And now h5 would win.} Nd6 {[%emt 0:00:00]} 58. Ne3 {[%emt 0:00:39]} Kd4 {[%emt 0:00:00]} 59. Nc2+ {[%emt 0:00:07]} Kd3 {[%emt 0:00:00]} 60. h5 {[%emt 0:01:25]} Nf5 {[%emt 0:00:00]} 61. Ne1+ {[%emt 0:01:13]} Kd4 {[%emt 0:00:00]} 62. Nc2+ {[%emt 0:00:41]} Kc5 {[%emt 0:00:00]} 63. Kc3 {[%emt 0:00:16]} b5 {[%emt 0:00:00]} 64. Nb4 {[%emt 0:00:13]} Nh6 {[%emt 0:00:00]} 65. Na6+ {[%emt 0:00:31]} Kb6 {[%emt 0:01:33]} 66. Nb4 {[%emt 0:00:07]} Kc5 {[%emt 0:02:39]} 67. Na6+ {[%emt 0:00:05] Weighted Error Value: White=0.07 (flawless) /Black=0.09 (flawless)} 1/2-1/2

[Event "Czech Championship Women 2022"]
[Site "Jaromerice nad Rokytnou"]
[Date "2022.05.26"]
[Round "6.5"]
[White "Koubova, Anna Marie"]
[Black "Trasakova, Adela"]
[Result "1-0"]
[ECO "D46"]
[WhiteElo "2115"]
[BlackElo "1842"]
[Annotator "TA"]
[PlyCount "55"]
[EventDate "2022.05.24"]
[EventType "tourn"]
[EventCountry "CZE"]
[SourceTitle "playchess.com"]
[Source "ChessBase"]
[SourceQuality "1"]
[TimeControl "40/5400+30:1800+30"]

{[%evp 19,55,32,21,22,26,39,233,43,44,44,46,42,82,87,105,55,309,272,292,296,302,301,286,295,443,424,424,430,446,427,462,270,779,771,755,750,1068,1061]} 1. d4 {[%emt 0:00:08]} d5 {[%emt 0:00:02]} 2. Nf3 {[%emt 0:00:16]} Nf6 {[%emt 0:00:02]} 3. c4 {[%emt 0:00:14]} c6 {[%emt 0:00:03]} 4. Nbd2 {[%emt 0:00:22]} e6 {[%emt 0:03:04]} 5. e3 {[%emt 0:00:35]} Nbd7 {[%emt 0:01:03]} 6. Bd3 {[%emt 0:00:33][%cal Bf1d3,Bd3e4,Be4f3][%mdl 32]} Bd6 {[%emt 0:01:00]} 7. O-O {[%emt 0:00:36]} O-O {[%emt 0:00:51]} 8. e4 {[%emt 0:00:51]} dxe4 {[%emt 0:02:22]} 9. Nxe4 {[%emt 0:00:29]} Nxe4 {[%emt 0:00:48]} 10. Bxe4 {[%emt 0:00:13]} c5 {[%emt 0:05:16]} 11. b3 {[%emt 0:12:35] D46: Semi-Slav: 5 e3 Nbd7 6 Bd3, Black avoids the Meran.} cxd4 {[%emt 0:03:40]} 12. Qxd4 {[%emt 0:02:57] [#]} Qf6 $146 {[%emt 0:10:28] [#]} (12... Qe7 $14) ({Predecessor:} 12... Bc5 13. Qc3 Qf6 14. Bb2 Qxc3 15. Bxc3 Nf6 16. Bc2 b6 17. Ng5 Be7 18. Rad1 Rd8 19. Bxf6 gxf6 20. Bxh7+ {½-½ (47) Waldmann,H (2280)-Rehberg,R (2244) Germany 2019}) 13. Bb2 $2 {[%emt 0:08:28]} (13. Qxd6 $1 $18 Qxa1 14. Qa3) 13... Qxd4 $14 {[%emt 0:03:40]} 14. Nxd4 {[%emt 0:00:28]} Nc5 {[%emt 0:02:26]} 15. Bf3 {[%emt 0:05:37]} a6 {[%emt 0:06:56]} 16. Rad1 {[%emt 0:04:46][%cal Od4c6] Threatens to win with Nc6!} Rd8 {[%emt 0:04:53]} 17. Ba3 {[%emt 0:08:47]} ({Better is} 17. Nc2 $16) 17... Ne4 $2 {[%emt 0:09:34][%mdl 8192]} 18. Ne2 {[%emt 0:24:13]} ({Weaker is} 18. Bxe4 Bxa3 19. g3 Be7 $11) 18... Nd2 {[%emt 0:06:29]} 19. Rxd2 {[%emt 0:00:31]} Bxh2+ {[%emt 0:00:04]} 20. Kxh2 {[%emt 0:00:06][%cal Rd2d8] [#]} Rxd2 {[%emt 0:00:08]} 21. Nc3 {[%emt 0:01:33]} Rb8 {[%emt 0:05:32]} (21... Rd3 {was worth a try.} 22. Be4 Rxc3) 22. Bc1 $18 {[%emt 0:01:53] A strong pair of Bishops.} Rd3 {[%emt 0:06:14]} 23. Bf4 {[%emt 0:07:20]} Ra8 {[%emt 0:01:23]} 24. Na4 {[%emt 0:00:48] And now Nb6 would win.} Bd7 {[%emt 0:01:28]} 25. Nc5 {[%emt 0:00:41]} (25. Bxb7 $142 Rf8 26. Nc5) 25... Rd4 $2 {[%emt 0:00:22]} (25... Rxf3 26. gxf3 Bc6) 26. Be3 {[%emt 0:00:23] White is clearly winning.} Rd6 {[%emt 0:00:36]} 27. Nxb7 {[%emt 0:00:19]} Rd3 {[%emt 0:01:34]} 28. Nc5 {[%emt 0:00:26][%csl LRa8,LRd3] Weighted Error Value: White=0.33/Black=0.72} 1-0

[Event "Czech Championship Women 2022"]
[Site "Jaromerice nad Rokytnou"]
[Date "2022.05.27"]
[Round "7.1"]
[White "Trasakova, Adela"]
[Black "Pilsova, Karolina"]
[Result "0-1"]
[ECO "A46"]
[WhiteElo "1842"]
[BlackElo "2229"]
[Annotator "TA"]
[PlyCount "52"]
[EventDate "2022.05.24"]
[EventType "tourn"]
[EventCountry "CZE"]
[SourceTitle "playchess.com"]
[Source "ChessBase"]
[SourceQuality "1"]
[TimeControl "40/5400+30:1800+30"]

{[%evp 10,52,5,4,35,-4,0,-20,0,0,0,0,3,0,35,40,40,47,34,36,39,25,32,-16,-31,-60,-64,-86,-81,-72,-78,-112,-42,-69,-79,-91,-73,-398,-392,-397,-383,-377,-326,-325,-318]} 1. d4 {[%emt 0:00:02]} Nf6 {[%emt 0:00:07]} 2. Nf3 {[%emt 0:00:09]} e6 {[%emt 0:00:07]} 3. g3 {[%emt 0:00:03]} b5 {[%emt 0:00:08]} 4. Bg2 {[%emt 0:00:59]} Bb7 {[%emt 0:00:08]} 5. O-O {[%emt 0:00:46]} c5 {[%emt 0:00:17]} 6. Bg5 {[%emt 0:01:04][%cal Oe2e4]} Be7 {[%emt 0:02:18] A46: 1 d4 Nf6 2 Nf3 e6: Torre, London and Colle Systems.} 7. a4 {[%emt 0:02:57]} b4 {[%emt 0:01:42] [#]} 8. c4 $146 {[%emt 0:00:18]} ({Predecessor:} 8. Bxf6 Bxf6 9. c3 bxc3 10. Nxc3 cxd4 11. Nxd4 Bxg2 12. Kxg2 O-O 13. e4 Qb6 14. Ndb5 a6 {1-0 (32) Ronka,E (2321)-Acsinte,M (2235) Chess.com INT 2021}) 8... bxc3 {[%emt 0:05:35] The position is equal.} 9. Nxc3 {[%emt 0:02:07][%cal Oe2e4]} O-O {[%emt 0:01:52]} 10. Rc1 {[%emt 0:10:37]} Na6 {[%emt 0:11:10]} 11. Nb5 {[%emt 0:04:39]} d5 {[%emt 0:23:26]} 12. Ne5 {[%emt 0:07:39]} h6 {[%emt 0:06:02]} 13. Be3 {[%emt 0:02:22][%cal Rd4c5]} Nd7 {[%emt 0:16:22]} 14. Nxd7 {[%emt 0:06:04]} Qxd7 {[%emt 0:00:04]} 15. dxc5 {[%emt 0:01:05]} Rfc8 {[%emt 0:03:41][%cal Ra6c5]} 16. Qd2 {[%emt 0:04:56]} (16. Nd6 $14 {is more appropriate.}) 16... Nxc5 $11 {[%emt 0:02:21]} 17. Bxc5 {[%emt 0:02:46]} Bxc5 {[%emt 0:00:05]} 18. Rc2 {[%emt 0:11:09]} a6 {[%emt 0:01:56]} 19. Nc3 {[%emt 0:03:10]} Bb4 {[%emt 0:00:44]} 20. Rfc1 {[%emt 0:01:37] [#]} Rc7 {[%emt 0:08:06]} ({Black should play} 20... Qxa4 $1 $17 {[%mdl 512]} 21. Qd3 Bxc3 22. Rxc3 Rxc3 23. Qxc3 Rc8) 21. Qf4 {[%emt 0:04:48]} Rc4 {[%emt 0:01:06]} 22. Qf3 {[%emt 0:04:47]} Rac8 {[%emt 0:00:43]} 23. b3 $2 {[%emt 0:01:56][%mdl 8192] White does not recover from this.} (23. Qd3 $17) 23... R4c5 {[%emt 0:01:56]} 24. Qd3 {[%emt 0:01:40]} Qc7 {[%emt 0:00:48]} 25. Nxd5 {[%emt 0:05:16]} exd5 {[%emt 0:01:48]} ({But not} 25... Bxd5 $2 26. Rxc5 Bxc5 27. Bxd5 Bxf2+ 28. Kxf2 $19) 26. Rxc5 {[%emt 0:02:12]} Bxc5 {[%emt 0:00:02] Weighted Error Value: White=0.44/Black=0.11 (very precise)} 0-1

[Event "Czech Championship Women 2022"]
[Site "Jaromerice nad Rokytnou"]
[Date "2022.05.27"]
[Round "7.2"]
[White "Richterova, Natasa"]
[Black "Koubova, Anna Marie"]
[Result "1-0"]
[ECO "D35"]
[WhiteElo "2181"]
[BlackElo "2115"]
[Annotator "TA"]
[PlyCount "45"]
[EventDate "2022.05.24"]
[EventType "tourn"]
[EventCountry "CZE"]
[SourceTitle "playchess.com"]
[Source "ChessBase"]
[SourceQuality "1"]
[TimeControl "40/5400+30:1800+30"]

{[%evp 12,45,0,-4,-2,-15,-41,-41,13,5,34,18,50,33,35,41,44,43,50,49,152,173,163,163,237,234,260,255,294,305,353,317,431,417,531,532]} 1. d4 {[%emt 0:00:07]} d5 {[%emt 0:00:38]} 2. Nf3 {[%emt 0:00:19]} Nf6 {[%emt 0:01:01]} 3. c4 {[%emt 0:00:12]} e6 {[%emt 0:01:01]} 4. Nc3 {[%emt 0:01:13]} Be7 {[%emt 0:01:07]} 5. e3 {[%emt 0:08:14]} O-O {[%emt 0:01:55]} 6. cxd5 {[%emt 0:01:21]} exd5 {[%emt 0:01:29]} 7. Bd3 {[%emt 0:00:06]} Bg4 {[%emt 0:06:40] D35: Queen's Gambit Declined: Exchange Variation.} 8. Qb3 {[%emt 0:01:27]} Bxf3 {[%emt 0:15:49] [#]} 9. gxf3 $146 {[%emt 0:01:01]} ({Predecessor:} 9. Qxb7 Bxg2 10. Rg1 Nbd7 11. Rxg2 c5 12. Nxd5 cxd4 13. Nxe7+ Qxe7 14. Kf1 Qd6 15. exd4 Qxd4 {0-1 (23) Untermann,N (1858)-Wiegner,D (2178) Bayern 2014}) 9... Nc6 {[%emt 0:05:07]} (9... Na6 $15) 10. Bd2 $11 {[%emt 0:03:18]} Nb4 {[%emt 0:03:36]} 11. Be2 {[%emt 0:00:58]} b6 {[%emt 0:03:12]} 12. a3 {[%emt 0:01:20]} Nc6 {[%emt 0:00:41]} 13. Rc1 {[%emt 0:03:09][%cal Oc3d5]} Na5 {[%emt 0:05:13]} 14. Qa4 $36 {[%emt 0:00:12][%mdl 2048] White is pushing.} Nb7 {[%emt 0:10:37]} 15. Ba6 {[%emt 0:03:04]} Qb8 {[%emt 0:08:26] [#]} ({Better is} 15... Rb8 $14) 16. Nxd5 $1 $16 {[%emt 0:07:12][%mdl 512] White is more active.} Nxd5 {[%emt 0:04:59]} 17. Qc6 $1 {[%emt 0:00:02][%csl LRb7,LRd5]} Na5 {[%emt 0:00:16]} (17... Rd8 {keeps fighting.}) 18. Qxd5 $18 {[%emt 0:01:36]} Rd8 {[%emt 0:05:13]} 19. Qe4 {[%emt 0:02:36]} Re8 {[%emt 0:01:09]} 20. Qc2 {[%emt 0:05:17] Against Nb3} Bf6 {[%emt 0:02:08]} 21. Bd3 {[%emt 0:15:44] This bishop pair is nice.} ({Weaker is} 21. Qxc7 Nb3 $14) 21... g6 {[%emt 0:01:17]} 22. Be4 {[%emt 0:00:51]} c6 {[%emt 0:02:53]} 23. b4 {[%emt 0:00:22] Weighted Error Value: White=0.01 (flawless) /Black=0.43} 1-0

[Event "Czech Championship Women 2022"]
[Site "Jaromerice nad Rokytnou"]
[Date "2022.05.27"]
[Round "7.3"]
[White "Zelbova, Lada"]
[Black "Novosadova, Kristyna"]
[Result "0-1"]
[ECO "C77"]
[WhiteElo "1967"]
[BlackElo "2147"]
[Annotator "TA"]
[PlyCount "104"]
[EventDate "2022.05.24"]
[EventType "tourn"]
[EventCountry "CZE"]
[SourceTitle "playchess.com"]
[Source "ChessBase"]
[SourceQuality "1"]
[TimeControl "40/5400+30:1800+30"]

{[%evp 10,104,6,9,14,0,0,9,-2,4,0,-22,-17,-23,-19,-49,-35,-67,-63,-66,-62,-94,-95,-151,-160,-155,-156,-166,-138,-162,-162,-159,-154,-159,-151,-150,-143,-158,-143,-180,-106,-132,-93,-106,-96,-93,-102,-116,-116,-116,-116,-116,-116,-116,-116,-116,-92,-102,-95,-109,-109,-137,-150,-135,-116,-116,-96,-83,-78,-269,-274,-262,-219,-1093,-1131,-950,-902,-806,-785,-1364,-1333,-1247,-1114,-1060,-1060,-1469,-1329,-29965,-29966,-29963,-29966,-29964,-29965,-29956,-2164,-11933,-7163]} 1. e4 {[%emt 0:00:04]} e5 {[%emt 0:00:17]} 2. Nf3 {[%emt 0:00:11]} Nc6 {[%emt 0:00:07]} 3. Bb5 {[%emt 0:00:07]} a6 {[%emt 0:00:04]} 4. Ba4 {[%emt 0:00:16]} Nf6 {[%emt 0:00:27]} 5. Bxc6 {[%emt 0:00:24]} dxc6 {[%emt 0:00:26]} 6. d3 {[%emt 0:00:09]} Qe7 {[%emt 0:04:11] C77: Ruy Lopez: 3...a6 4 Ba4 Nf6, unusual lines.} 7. Nbd2 {[%emt 0:04:29][%cal Bb1d2,Bd2c4,Bc4e3,Be3f5][%mdl 32]} Bg4 {[%emt 0:00:41]} 8. Nc4 {[%emt 0:02:42]} Nd7 {[%emt 0:00:18] The position is equal.} 9. h3 {[%emt 0:01:14]} Bh5 {[%emt 0:00:21] [#]} 10. Ne3 $146 {[%emt 0:01:37]} ({Predecessor:} 10. g4 Bg6 11. Bd2 f6 12. Qe2 Qe6 13. b3 Nb6 14. Na5 O-O-O 15. O-O-O Ba3+ 16. Kb1 {0-1 (36) Kupreichik,V-Vasiukov,E Moscow 1969}) 10... f6 {[%emt 0:04:53]} 11. Nf5 {[%emt 0:10:55]} Qe6 {[%emt 0:01:20]} 12. Be3 {[%emt 0:06:14][%cal Of3d4]} c5 {[%emt 0:02:49]} 13. g4 {[%emt 0:17:12]} Bf7 {[%emt 0:00:12]} 14. Nd2 {[%emt 0:04:29]} O-O-O {[%emt 0:00:46]} 15. f3 {[%emt 0:05:09]} Nb8 {[%emt 0:03:46]} 16. Ke2 {[%emt 0:08:30]} (16. Ng3 $142) 16... g6 $17 {[%emt 0:00:43]} 17. Ng3 {[%emt 0:00:29]} Nc6 {[%emt 0:01:03]} 18. c3 {[%emt 0:01:10]} Be7 {[%emt 0:06:23]} 19. Qc2 {[%emt 0:02:27]} Rd7 {[%emt 0:01:33]} 20. Rhd1 {[%emt 0:05:26]} Rhd8 {[%emt 0:00:30]} 21. Nc4 {[%emt 0:02:22]} h5 {[%emt 0:07:28]} 22. Bf2 {[%emt 0:01:49]} hxg4 {[%emt 0:03:27]} 23. hxg4 {[%emt 0:00:19]} Bf8 {[%emt 0:00:48]} 24. Ne3 {[%emt 0:00:35]} Ne7 {[%emt 0:05:03]} (24... Bh6 $19 25. b3 b6) 25. Qa4 {[%emt 0:02:34]} Bh6 {[%emt 0:08:25]} 26. Qc4 {[%emt 0:01:11]} Qxc4 {[%emt 0:13:27]} (26... Qb6 {with more complications.} 27. Qxf7 Qxb2+ 28. Kf1 Bxe3 29. Bxe3 Nd5) 27. dxc4 {[%emt 0:00:14]} Bxe3 {[%emt 0:00:21]} 28. Bxe3 {[%emt 0:00:09]} Bxc4+ {[%emt 0:00:09]} 29. Ke1 {[%emt 0:00:09]} Rxd1+ {[%emt 0:03:00]} 30. Rxd1 {[%emt 0:00:05]} Rxd1+ {[%emt 0:00:12]} 31. Kxd1 {[%emt 0:00:04]} Bxa2 {[%emt 0:00:21]} 32. Bxc5 {[%emt 0:00:20][%mdl 4096] Endgame KBN-KBN} Nc6 {[%emt 0:02:41]} 33. Nf1 {[%emt 0:03:03]} b6 {[%emt 0:01:09]} 34. Ba3 {[%emt 0:02:16]} Kd7 {[%emt 0:02:22]} 35. Ne3 {[%emt 0:00:38]} Bb3+ {[%emt 0:01:48]} 36. Kd2 {[%emt 0:00:50]} Be6 {[%emt 0:05:08]} 37. Kd3 {[%emt 0:03:38]} Na7 {[%emt 0:01:02]} 38. g5 {[%emt 0:11:05]} f5 {[%emt 0:02:57][%cal Bf6f5,Bf5f4][%mdl 32]} 39. Nc4 $2 {[%emt 0:02:33] White does not recover from this.} (39. Bf8 $17) 39... Bxc4+ $19 {[%emt 0:02:53]} 40. Kxc4 {[%emt 0:00:07] KB-KN} Ke6 {[%emt 0:03:48]} 41. b4 $2 {[%emt 0:10:58]} (41. Bf8) 41... f4 {[%emt 0:01:41]} 42. Kd3 {[%emt 0:09:37]} Nb5 {[%emt 0:00:15]} 43. Bb2 {[%emt 0:00:08]} Nd6 {[%emt 0:00:11]} 44. c4 {[%emt 0:00:41]} Nf7 {[%emt 0:00:39]} 45. Ke2 {[%emt 0:01:18]} Nxg5 {[%emt 0:00:45] [#] And now ...c5 would win.} 46. Ba3 {[%emt 0:00:25]} c6 {[%emt 0:00:53]} 47. Bb2 {[%emt 0:00:33]} c5 {[%emt 0:01:50]} 48. bxc5 {[%emt 0:00:48]} bxc5 {[%emt 0:00:04]} 49. Bc3 {[%emt 0:01:21]} Kd6 {[%emt 0:00:06]} 50. Kf2 {[%emt 0:00:53]} Ne6 {[%emt 0:00:08]} 51. Kg2 {[%emt 0:00:26]} Nd4 {[%emt 0:00:51] [#] ( -> ...Nb3)} 52. Kf2 {[%emt 0:00:23]} Nc6 {[%emt 0:00:24] Weighted Error Value: White=0.73/Black=0.08 (flawless)} 0-1

[Event "Czech Championship Women 2022"]
[Site "Jaromerice nad Rokytnou"]
[Date "2022.05.27"]
[Round "7.4"]
[White "Nemcova, Karin"]
[Black "Sikorova, Olga"]
[Result "1-0"]
[ECO "C15"]
[WhiteElo "2181"]
[BlackElo "2173"]
[Annotator "TA"]
[PlyCount "72"]
[EventDate "2022.05.24"]
[EventType "tourn"]
[EventCountry "CZE"]
[SourceTitle "playchess.com"]
[Source "ChessBase"]
[SourceQuality "1"]
[TimeControl "40/5400+30:1800+30"]

{[%evp 15,72,16,12,17,24,22,21,35,37,19,43,26,28,35,31,11,23,21,37,5,8,-3,14,-21,-29,-28,88,56,70,0,60,64,347,363,386,146,160,163,146,160,239,275,437,426,395,389,590,544,743,816,819,808,786,778,780,743,29986,29987,29994]} 1. e4 {[%emt 0:00:01]} e6 {[%emt 0:00:11]} 2. d4 {[%emt 0:00:06]} d5 {[%emt 0:00:13]} 3. Nc3 {[%emt 0:00:07]} Bb4 {[%emt 0:00:08]} 4. Nge2 {[%emt 0:00:06]} dxe4 {[%emt 0:00:54]} 5. a3 {[%emt 0:00:08]} Be7 {[%emt 0:00:08]} 6. Nxe4 {[%emt 0:00:07]} Nf6 {[%emt 0:00:08]} 7. Nxf6+ $1 {[%emt 0:00:08][%mdl 4] now scores much better than the old 7.N2g3.} Bxf6 {[%emt 0:00:51]} 8. Be3 {[%emt 0:00:09]} Nc6 {[%emt 0:13:26][%cal Bb8c6,Bc6e7,Be7f5,Bf5e3][%mdl 32]} 9. Qd2 {[%emt 0:00:48] C15: French: 3 Nc3 Bb4: Unusual White 4th moves.} Ne7 {[%emt 0:10:00] [#]} 10. Nf4 $146 {[%emt 0:03:08]} ({Predecessor:} 10. Ng3 Nd5 11. Nh5 Nxe3 12. Nxf6+ Qxf6 13. Qxe3 Bd7 14. Bd3 c5 15. dxc5 Qxb2 16. O-O Bc6 {½-½ (40) Heimann,A (2599)-Meier,G (2628) Magdeburg 2021}) 10... Nf5 {[%emt 0:02:08]} 11. O-O-O {[%emt 0:02:15] The position is equal.} Nxe3 {[%emt 0:03:59]} 12. fxe3 {[%emt 0:04:20]} g6 {[%emt 0:10:20]} 13. Qf2 {[%emt 0:04:52]} O-O {[%emt 0:08:42][%cal Oc7c5]} 14. h4 {[%emt 0:03:29]} c5 {[%emt 0:00:51]} 15. g4 {[%emt 0:01:53]} cxd4 {[%emt 0:01:21]} 16. exd4 {[%emt 0:00:54]} Bg7 {[%emt 0:08:40]} 17. Bc4 {[%emt 0:03:14]} b5 {[%emt 0:10:21]} 18. Ba2 {[%emt 0:08:55]} (18. Bxb5 Rb8 19. Ba4 (19. c4 $2 Qc7 $17) 19... e5 20. dxe5 Qa5 $17) 18... a5 {[%emt 0:00:34]} 19. g5 {[%emt 0:04:16]} (19. h5 $5 {[%cal Rh5g6]}) 19... b4 {[%emt 0:06:56]} 20. a4 {[%emt 0:06:04]} b3 {[%emt 0:00:24]} (20... Ra6 $11) 21. Bxb3 $16 {[%emt 0:00:20] Hoping for Kb1.} Rb8 $1 {[%emt 0:00:55]} 22. Qe3 {[%emt 0:12:47] White is much more active.} (22. d5 $14 e5 23. Ne2) 22... Bd7 {[%emt 0:06:24]} (22... Qd6 $11) 23. d5 {[%emt 0:01:42][%cal Rd5e6]} Rxb3 $4 {[%emt 0:03:37][%mdl 8192] Loses the game.} 24. Qxb3 $18 {[%emt 0:00:56][%cal Rd5e6]} Qc7 {[%emt 0:01:14]} 25. d6 $2 {[%emt 0:06:32]} (25. Rhf1 $18 {and the rest is easy.} Rb8 26. dxe6 $1 (26. d6 Qc8 $15) 26... Bxb2+ 27. Kb1 (27. Kxb2 fxe6 28. Rde1 Qd6 $11) 27... Rxb3 28. Rxd7 (28. cxb3 Bxa4 29. Kxb2 Qb8 $11) 28... Bg7+ 29. cxb3) 25... Qa7 $16 {[%emt 0:00:06] [#]} 26. Nd3 $1 {[%emt 0:07:04]} Rb8 {[%emt 0:00:42]} 27. Qc4 {[%emt 0:01:12] Rhe1 is the strong threat.} Rc8 {[%emt 0:06:53]} (27... Qb7 $16 {is a better defense.}) 28. Qf4 $18 {[%emt 0:03:48] And now Rhf1 would win.} Bd4 {[%emt 0:00:07]} (28... e5 $142 29. Qf2 (29. Nxe5 Qc5 $16) 29... Qb7) 29. Kb1 {[%emt 0:04:42]} Bxa4 {[%emt 0:00:33]} 30. b3 {[%emt 0:02:58] Threatens to win with h5.} Qb6 {[%emt 0:01:04]} (30... Bd7 {was worth a try.} 31. h5 gxh5) 31. Nb2 {[%emt 0:03:45]} Bxb3 {[%emt 0:03:08]} 32. cxb3 {[%emt 0:00:45]} ({Weaker is} 32. Qxd4 Bxc2+ 33. Ka1 Qb3 $16) 32... e5 {[%emt 0:00:14]} 33. d7 {[%emt 0:06:35]} Rd8 {[%emt 0:00:25]} 34. Qf6 {[%emt 0:00:53]} Qc7 {[%emt 0:01:05]} 35. h5 {[%emt 0:00:40] White wants to mate with hxg6.} gxh5 {[%emt 0:00:38]} 36. Rxh5 {[%emt 0:00:24]} Rxd7 {[%emt 0:00:00] Weighted Error Value: White=0.17 (very precise) /Black=0.64} 1-0